fUSD/lending_fUSD_20260224
["ID","MTS","AMOUNT","RATE_DAILY","PERIOD"]
[406540274,1771926638939,-151.0,0.00011318,2]
[406540277,1771926638948,-151.0,0.00011318,2]
[406540278,1771926638957,-151.0,0.00011318,2]
[406540280,1771926638969,-151.0,0.00011318,2]
[406540282,1771926638979,-151.0,0.00011318,2]
[406540283,1771926638988,-151.0,0.00011318,2]
[406540284,1771926638998,-151.0,0.00011318,2]
[406540285,1771926639008,-151.0,0.00011318,2]
[406540286,1771926639017,-151.0,0.00011318,2]
[406540287,1771926639027,-151.0,0.00011318,2]
[406540288,1771926639037,-151.0,0.00011318,2]
[406540289,1771926639046,-151.0,0.00011318,2]
[406540290,1771926639055,-151.0,0.00011318,2]
[406540291,1771926639065,-151.0,0.00011318,2]
[406540292,1771926639074,-198.0,0.00011318,2]
[406540293,1771926639083,-151.0,0.00011318,2]
[406540294,1771926639092,-151.0,0.00011318,2]
[406540295,1771926639101,-151.0,0.00011318,2]
[406540296,1771926639111,-151.0,0.00011318,2]
[406540297,1771926639120,-151.0,0.00011318,2]
[406540298,1771926639129,-151.0,0.00011318,2]
[406540299,1771926639138,-151.0,0.00011318,2]
[406540300,1771926639147,-151.0,0.00011318,2]
[406540301,1771926639157,-151.0,0.00011318,2]
[406540302,1771926639166,-151.0,0.00011318,2]
[406540303,1771926639175,-151.0,0.00011318,2]
[406540304,1771926639184,-151.0,0.00011318,2]
[406540305,1771926639193,-151.0,0.00011318,2]
[406540306,1771926639202,-34222.9526,0.00011325,2]
[406540307,1771926639211,-886.7633,0.00011325,2]
[406540308,1771926639221,-1000.0,0.00011325,2]
[406540309,1771926639230,-9999.99,0.00011325,2]
[406540310,1771926639239,-150.99,0.00011325,2]
[406540311,1771926639248,-166.66,0.00011397,2]
[406540312,1771926639257,-306.28,0.00011418,2]
[406540313,1771926639266,-9999.99,0.00011418,2]
[406540314,1771926639275,-1185.85,0.00011418,2]
[406540315,1771926639284,-9999.99,0.00011418,2]
[406540316,1771926639293,-999.99,0.00011418,2]
[406540317,1771926639302,-499.99,0.00011418,2]
[406540318,1771926639313,-9999.99,0.00011418,2]
[406540319,1771926639324,-9999.99,0.00011418,2]
[406540320,1771926639335,-14657.05,0.00011418,2]
[406540321,1771926639344,-9999.99,0.00011418,2]
[406540322,1771926639354,-516.03,0.00011418,2]
[406540323,1771926639363,-299.99,0.00011418,2]
[406540324,1771926639374,-150.99,0.00011418,2]
[406540325,1771926639384,-171.4,0.00011421,2]
[406540326,1771926639394,-1016.16,0.00011424,2]
[406540327,1771926639405,-166.66,0.00011507,2]
[406540328,1771926639415,-506.23472364,0.00011513,2]
[406540329,1771926639429,-500.0,0.00011592,2]
[406540330,1771926639439,-1558.95,0.00011625,2]
[406540331,1771926639449,-1016.16,0.00011698,2]
[406540332,1771926639458,-5117.77252064,0.00011767,2]
[406540333,1771926639471,-5840.56173823,0.00011767,2]
[406540334,1771926639481,-245262.00435537,0.00011849,2]
[406540335,1771926639493,-1558.95,0.00011856,2]
[406540336,1771926639503,-500.0,0.00011866,2]
[406540337,1771926639514,-3033.8338672,0.00011958,2]
[406540338,1771926639524,-271.07639936,0.00011968,2]
[406540339,1771926639534,-1016.16,0.00011972,2]
[406540340,1771926639545,-1838.0,0.00012039,2]
[406540341,1771926639555,-349.0,0.00012039,2]
[406540342,1771926639565,-250.0,0.00012055,2]
[406540343,1771926639575,-985.0,0.00012063,2]
[406540344,1771926639584,-371.0,0.00012063,2]
[406540345,1771926639595,-1558.95,0.00012087,2]
[406540346,1771926639604,-287.0,0.00012087,2]
[406540347,1771926639613,-4266.19290212,0.00012093,2]
[406540348,1771926639623,-300.0,0.000121,2]
[406540349,1771926639634,-5000.0,0.000121,2]
[406540350,1771926639643,-193.0,0.00012113,2]
[406540351,1771926639653,-5000.0,0.00012113,2]
[406540352,1771926639662,-300.0,0.00012113,2]
[406540353,1771926639671,-250.0,0.00012113,2]
[406540354,1771926639681,-300.0,0.00012113,2]
[406540355,1771926639690,-183.0,0.00012122,2]
[406540356,1771926639699,-500.0,0.0001214,2]
[406540357,1771926639709,-423.0,0.00012146,2]
[406540358,1771926639723,-235.0,0.00012171,2]
[406540359,1771926639734,-19912.52,0.00012192,2]
[406540360,1771926639743,-329.0,0.00012195,2]
[406540361,1771926639753,-150.0,0.00012204,2]
[406540362,1771926639762,-409.0,0.00012219,2]
[406540363,1771926639771,-420.0,0.00012223,2]
[406540364,1771926639781,-1680.0,0.00012236,2]
[406540365,1771926639791,-405.0,0.00012243,2]
[406540366,1771926639800,-1016.16,0.00012245,2]
[406540367,1771926639809,-359.0,0.00012267,2]
[406540368,1771926639819,-1172.0,0.00012272,2]
[406540369,1771926639828,-255.0,0.00012278,2]
[406540370,1771926639838,-929.0,0.00012297,2]
[406540371,1771926639848,-171.4,0.00012299,2]
[406540372,1771926639858,-1558.95,0.00012318,2]
[406540373,1771926639867,-326.0,0.00012321,2]
[406540374,1771926639877,-2190.8,0.00012321,2]
[406540375,1771926639886,-1463.0,0.00012346,2]
[406540376,1771926639895,-484.87,0.00012355,2]
[406540377,1771926639904,-1954.0,0.0001237,2]
[406540378,1771926639914,-5117.77252064,0.00012408,2]
[406540379,1771926639923,-5840.56173823,0.00012408,2]
[406540380,1771926639932,-500.0,0.00012414,2]
[406540381,1771926639942,-1016.16,0.00012519,2]
[406540382,1771926639952,-1558.95,0.00012548,2]
[406540383,1771926639962,-243.49063492,0.00012587,2]
[406540384,1771926639975,-1000.0,0.00012619,2]
[406540385,1771926639985,-355.31,0.00012629,2]
[406540386,1771926639994,-500.0,0.00012688,2]
[406540387,1771926640003,-6568.43269222,0.00012766,2]
[406540388,1771926640012,-1558.95,0.00012779,2]
[406540389,1771926640022,-1016.16,0.00012793,2]
[406540390,1771926640031,-500.0,0.00012895,3]
[406540391,1771926640041,-1558.95,0.0001301,2]
[406540392,1771926640050,-8163.52550462,0.00013035,2]
[406540393,1771926640059,-5117.77252064,0.0001305,2]
[406540394,1771926640068,-5840.56173823,0.0001305,2]
[406540395,1771926640077,-4266.19290212,0.00013061,2]
[406540396,1771926640087,-1016.16,0.00013067,2]
[406540397,1771926640096,-500.0,0.00013073,2]
[406540398,1771926640105,-500.0,0.00013073,2]
[406540399,1771926640115,-500.0,0.00013073,2]
[406540400,1771926640124,-500.0,0.00013073,2]
[406540401,1771926640134,-500.0,0.00013073,2]
[406540402,1771926640144,-500.0,0.00013073,2]
[406540403,1771926640158,-500.0,0.00013073,2]
[406540404,1771926640169,-500.0,0.00013073,2]
[406540405,1771926640178,-500.0,0.00013073,2]
[406540406,1771926640187,-500.0,0.00013073,2]
[406540407,1771926640197,-500.0,0.00013073,2]
[406540408,1771926640206,-500.0,0.00013073,2]
[406540409,1771926640216,-500.0,0.00013101,2]
[406540410,1771926640226,-500.0,0.00013101,2]
[406540411,1771926640235,-500.0,0.00013101,2]
[406540412,1771926640244,-500.0,0.00013101,2]
[406540413,1771926640254,-500.0,0.00013101,2]
[406540414,1771926640264,-500.0,0.00013101,2]
[406540415,1771926640273,-500.0,0.00013101,2]
[406540416,1771926640282,-500.0,0.00013101,2]
[406540417,1771926640292,-800.0,0.00013101,2]
[406540418,1771926640553,-500.0,0.00013101,2]
[406540419,1771926640563,-800.0,0.00013101,2]
[406540420,1771926640573,-500.0,0.00013101,2]
[406540421,1771926640582,-500.0,0.00013101,2]
[406540422,1771926640592,-800.0,0.00013101,2]
[406540423,1771926640602,-500.0,0.00013101,2]
[406540424,1771926640612,-800.0,0.00013101,2]
[406540425,1771926640622,-800.0,0.00013101,2]
[406540426,1771926640631,-800.0,0.00013101,2]
[406540427,1771926640642,-800.0,0.00013101,2]
[406540428,1771926640651,-500.0,0.00013101,2]
[406540429,1771926640660,-800.0,0.00013101,2]
[406540430,1771926640669,-800.0,0.00013101,2]
[406540431,1771926640679,-800.0,0.00013101,2]
[406540432,1771926640689,-800.0,0.00013101,2]
[406540433,1771926640698,-800.0,0.00013101,2]
[406540434,1771926640707,-800.0,0.00013101,2]
[406540435,1771926640717,-800.0,0.00013101,2]
[406540436,1771926640727,-171.4,0.00013178,2]
[406540437,1771926640737,-349.61,0.00013178,2]
[406540438,1771926640746,-6088.6606761,0.00013207,2]
[406540439,1771926640756,-1558.95,0.00013241,2]
[406540440,1771926640766,-558.46,0.00013274,2]
[406540441,1771926640775,-500.0,0.000133,2]
[406540442,1771926640784,-7098.54583749,0.00013334,2]
[406540443,1771926640793,-1016.23950757,0.00013341,2]
[406540444,1771926640803,-166.66,0.00013384,2]
[406540445,1771926640812,-3240.0,0.00013425,2]
[406540446,1771926640822,-587.0,0.00013429,2]
[406540447,1771926640831,-433.0,0.00013434,2]
[406540448,1771926640840,-2351.0,0.0001346,2]
[406540449,1771926640850,-1558.95,0.00013472,2]
[406540450,1771926640859,-500.0,0.00013621,2]
[406540451,1771926640868,-501.70650637,0.00013621,2]
[406540452,1771926640877,-500.0,0.00013621,2]
[406540453,1771926640886,-500.0,0.00013621,2]
[406540454,1771926640895,-1000.0,0.00013621,2]
[406540455,1771926640904,-500.0,0.00013621,2]
[406540456,1771926640913,-501.90132287,0.00013621,2]
[406540457,1771926640923,-550.01264972,0.00013621,2]
[406540458,1771926640933,-235.93365693,0.00013621,2]
[406540459,1771926640941,-328.54094648,0.00013621,2]
[406540460,1771926640950,-500.0,0.00013621,2]
[406540461,1771926640959,-500.0,0.00013621,2]
[406540462,1771926640970,-243.49063492,0.00013649,2]
[406540463,1771926640979,-5117.77252064,0.00013692,2]
[406540464,1771926640988,-5840.56173823,0.00013692,2]
[406540465,1771926640997,-500.0,0.00013698,2]
[406540466,1771926641006,-500.0,0.00013698,2]
[406540467,1771926641015,-500.0,0.00013698,2]
[406540468,1771926641024,-500.0,0.00013698,2]
[406540469,1771926641034,-500.0,0.00013698,2]
[406540470,1771926641043,-500.0,0.00013698,2]
[406540471,1771926641052,-500.0,0.00013698,2]
[406540472,1771926641060,-500.0,0.00013698,2]
[406540473,1771926641069,-500.0,0.00013698,2]
[406540474,1771926641078,-429.95,0.00013698,2]
[406540475,1771926641087,-500.0,0.00013698,2]
[406540476,1771926641096,-500.0,0.00013698,2]
[406540477,1771926641105,-500.0,0.00013698,2]
[406540478,1771926641114,-500.0,0.00013698,2]
[406540479,1771926641124,-500.0,0.00013698,2]
[406540480,1771926641133,-500.0,0.00013698,2]
[406540481,1771926641143,-500.0,0.00013698,2]
[406540482,1771926641151,-500.0,0.00013698,2]
[406540483,1771926641161,-500.0,0.00013698,2]
[406540484,1771926641170,-500.0,0.00013698,2]
[406540485,1771926641179,-500.0,0.00013698,2]
[406540486,1771926641188,-500.0,0.00013698,2]
[406540487,1771926641197,-185.1,0.00013698,2]
[406540488,1771926641206,-500.0,0.00013698,2]
[406540489,1771926641215,-500.0,0.00013698,2]
[406540490,1771926641224,-500.0,0.00013698,2]
[406540491,1771926641234,-500.0,0.00013698,2]
[406540492,1771926641243,-500.0,0.00013698,2]
[406540493,1771926641252,-500.0,0.00013698,2]
[406540494,1771926641261,-500.0,0.00013698,2]
[406540495,1771926641270,-500.0,0.00013698,2]
[406540496,1771926641279,-500.0,0.00013698,2]
[406540497,1771926641288,-500.0,0.00013698,2]
[406540498,1771926641297,-500.0,0.00013698,2]
[406540499,1771926641306,-500.0,0.00013698,2]
[406540500,1771926641317,-500.0,0.00013698,2]
[406540501,1771926641326,-500.0,0.00013698,2]
[406540502,1771926641337,-500.0,0.00013698,2]
[406540503,1771926641347,-500.0,0.00013698,2]
[406540504,1771926641356,-500.0,0.00013698,2]
[406540505,1771926641365,-500.0,0.00013698,2]
[406540506,1771926641375,-500.0,0.00013698,2]
[406540507,1771926641385,-500.0,0.00013698,2]
[406540508,1771926641394,-500.0,0.00013698,2]
[406540509,1771926641403,-500.0,0.00013698,2]
[406540510,1771926641413,-620.64302742,0.00013698,2]
[406540512,1771926641423,-500.0,0.00013698,2]
[406540513,1771926641432,-500.0,0.00013698,2]
[406540515,1771926641441,-500.0,0.00013698,2]
[406540517,1771926641451,-500.0,0.00013698,2]
[406540519,1771926641460,-500.0,0.00013698,2]
[406540521,1771926641469,-500.0,0.00013698,2]
[406540522,1771926641479,-500.0,0.00013698,2]
[406540523,1771926641488,-500.0,0.00013698,2]
[406540524,1771926641497,-500.0,0.00013698,2]
[406540525,1771926641506,-500.0,0.00013698,2]
[406540526,1771926641515,-500.0,0.00013698,2]
[406540527,1771926641524,-500.0,0.00013698,2]
[406540528,1771926641532,-388.13,0.00013698,2]
[406540529,1771926641541,-500.0,0.00013698,2]
[406540530,1771926641550,-500.0,0.00013698,2]
[406540531,1771926641559,-500.0,0.00013698,2]
[406540532,1771926641568,-500.0,0.00013698,2]
[406540533,1771926641577,-500.0,0.00013698,2]
[406540534,1771926641587,-500.0,0.00013698,2]
[406540535,1771926641596,-500.0,0.00013698,2]
[406540536,1771926641609,-500.0,0.00013698,2]
[406540537,1771926641618,-500.0,0.00013698,2]
[406540538,1771926641628,-500.0,0.00013698,2]
[406540539,1771926641637,-500.0,0.00013698,2]
[406540540,1771926641646,-500.0,0.00013698,2]
[406540541,1771926641656,-500.0,0.00013698,2]
[406540542,1771926641665,-500.0,0.00013698,2]
[406540543,1771926641674,-635.23544103,0.00013698,2]
[406540544,1771926641683,-500.0,0.00013698,2]
[406540545,1771926641692,-500.0,0.00013698,2]
[406540546,1771926641701,-500.0,0.00013698,2]
[406540547,1771926641710,-500.0,0.00013698,2]
[406540548,1771926641719,-500.0,0.00013698,2]
[406540549,1771926641728,-316.6988027,0.00013698,2]
[406540550,1771926641737,-632.93,0.00013698,2]
[406540551,1771926641747,-632.93,0.00013698,2]
[406540552,1771926641756,-632.93,0.00013698,2]
[406540553,1771926641765,-632.93,0.00013698,2]
[406540554,1771926641775,-632.93,0.00013698,2]
[406540555,1771926641784,-632.93,0.00013698,2]
[406540556,1771926641793,-632.93,0.00013698,2]
[406540557,1771926641802,-632.93,0.00013698,2]
[406540558,1771926641812,-632.93,0.00013698,2]
[406540559,1771926641822,-632.93,0.00013698,2]
[406540560,1771926641831,-632.93,0.00013698,2]
[406540561,1771926641839,-632.93,0.00013698,2]
[406540562,1771926641849,-632.93,0.00013698,2]
[406540563,1771926641859,-632.93,0.00013698,2]
[406540564,1771926641868,-632.93,0.00013698,2]
[406540565,1771926641877,-632.93,0.00013698,2]
[406540566,1771926641887,-500.0,0.00013698,2]
[406540567,1771926641896,-500.0,0.00013698,2]
[406540568,1771926641906,-500.0,0.00013698,2]
[406540569,1771926641915,-500.0,0.00013698,2]
[406540570,1771926641923,-500.0,0.00013698,2]
[406540571,1771926641933,-502.16359539,0.00013698,2]
[406540572,1771926641943,-500.0,0.00013698,2]
[406540573,1771926641951,-500.0,0.00013698,2]
[406540574,1771926641961,-500.0,0.00013698,2]
[406540575,1771926641971,-500.0,0.00013698,2]
[406540576,1771926641980,-425.41241493,0.00013698,2]
[406540577,1771926641990,-1057.48,0.00013698,2]
[406540578,1771926641999,-1057.48,0.00013698,2]
[406540579,1771926642010,-1057.48,0.00013698,2]
[406540580,1771926642019,-1057.48,0.00013698,2]
[406540581,1771926642028,-1057.48,0.00013698,2]
[406540582,1771926642038,-1057.48,0.00013698,2]
[406540583,1771926642047,-1057.48,0.00013698,2]
[406540584,1771926642056,-1057.48,0.00013698,2]
[406540585,1771926642065,-1057.48,0.00013698,2]
[406540586,1771926642074,-1057.48,0.00013698,2]
[406540587,1771926642083,-1057.48,0.00013698,2]
[406540588,1771926642092,-1057.48,0.00013698,2]
[406540589,1771926642101,-1057.48,0.00013698,2]
[406540590,1771926642110,-1057.48,0.00013698,2]
[406540591,1771926642119,-1057.48,0.00013698,2]
[406540592,1771926642128,-1057.48,0.00013698,2]
[406540593,1771926642137,-500.0,0.00013698,2]
[406540594,1771926642146,-500.0,0.00013698,2]
[406540595,1771926642155,-500.0,0.00013698,2]
[406540596,1771926642164,-500.0,0.00013698,2]
[406540597,1771926642173,-500.0,0.00013698,2]
[406540598,1771926642182,-500.0,0.00013698,2]
[406540599,1771926642190,-500.0,0.00013698,2]
[406540600,1771926642199,-222.44569411,0.00013698,2]
[406540601,1771926642209,-200.0,0.00013699,2]
[406540602,1771926642218,-302.70589394,0.00013699,2]
[406540603,1771926642227,-3855.59,0.000137,2]
[406540604,1771926642236,-3855.59,0.000137,2]
[406540605,1771926642246,-3855.59,0.000137,2]
[406540606,1771926642255,-3855.59,0.000137,2]
[406540607,1771926642264,-3855.59,0.000137,2]
[406540608,1771926642273,-1558.95,0.00013703,2]
[406540609,1771926642282,-250.0,0.00013733,2]
[406540610,1771926642291,-3033.8338672,0.0001374,2]
[406540611,1771926642300,-166.66,0.00013826,2]
[406540612,1771926642311,-1558.95,0.00013934,2]
[406540613,1771926642322,-4266.19290212,0.00014029,2]
[406540614,1771926642331,-171.4,0.00014056,2]
[406540615,1771926642340,-1558.95,0.00014165,2]
[406540616,1771926642350,-1500.0,0.00014168,2]
[406540617,1771926642360,-1000.0,0.00014197,2]
[406540618,1771926642369,-166.66,0.00014268,2]
[406540619,1771926642378,-5117.77252064,0.00014333,2]
[406540620,1771926642389,-5840.56173823,0.00014333,2]
[406540621,1771926642398,-10357.55636516,0.0001439,2]
[406540622,1771926642408,-1558.95,0.00014396,2]
[406540623,1771926642418,-357.83626528,0.00014513,2]
[406540624,1771926642427,-967.86848163,0.00014562,2]
[406540625,1771926642437,-1558.95,0.00014627,2]
[406540626,1771926642447,-736.0,0.0001469,2]
[406540627,1771926642456,-166.66,0.0001471,2]
[406540628,1771926642466,-243.49063492,0.00014712,2]
[406540629,1771926642476,-2000.0,0.00014716,2]
[406540630,1771926642485,-823.0,0.00014756,2]
[406540631,1771926642495,-173.87087054,0.00014801,2]
[406540632,1771926642504,-3292.0,0.00014806,2]
[406540633,1771926642513,-171.4,0.00014935,2]
[406540634,1771926642523,-5117.77252064,0.00014975,2]
[406540635,1771926642532,-5840.56173823,0.00014975,2]
[406540636,1771926642541,-4266.19290212,0.00014996,2]
[406540637,1771926642551,-632.93,0.00014999,2]
[406540638,1771926642560,-1057.48,0.00014999,2]
[406540639,1771926642569,-250.0,0.00015,2]
[406540640,1771926642578,-2057.23131483,0.00015,2]
[406540641,1771926642587,-18027.12324089,0.00015,7]
[406540642,1771926642596,-8008.97204016,0.00015,2]
[406540643,1771926642605,-10016.0,0.00015,2]
[406540644,1771926642614,-160.64,0.00015,2]
[406540645,1771926642623,-900.0,0.00015068,2]
[406540646,1771926642632,-500.0,0.00015101,2]
[406540647,1771926642641,-160.0,0.00015117,2]
[406540648,1771926642650,-500.0,0.00015119,2]
[406540649,1771926642659,-632.93,0.00015119,2]
[406540650,1771926642668,-1057.48,0.00015119,2]
[406540651,1771926642678,-240439.56128328,0.0001512,2]
[406540652,1771926642687,-166.66,0.00015151,2]
[406540653,1771926642696,-2500.0,0.00015264,2]
[406540654,1771926642706,-1517.64,0.000153,2]
[406540655,1771926642715,-1413.37,0.0001531,2]
[406540656,1771926642725,-19999.99,0.0001531,2]
[406540657,1771926642735,-510.0565306,0.000154,2]
[406540658,1771926642744,-484.87,0.00015449,2]
[406540659,1771926642754,-175.49,0.00015515,2]
[406540660,1771926642762,-3033.8338672,0.00015522,2]
[406540661,1771926642771,-112471.65,0.0001553,2]
[406540662,1771926642780,-500.0,0.00015554,2]
[406540663,1771926642789,-166.66,0.00015593,2]
[406540664,1771926642798,-5117.77252064,0.00015617,2]
[406540665,1771926642807,-5840.56173823,0.00015617,2]
[406540666,1771926642816,-902.02,0.00015666,2]
[406540667,1771926642825,-482.622583,0.00015694,2]
[406540668,1771926642834,-4286.4,0.00015715,2]
[406540669,1771926642843,-16914.87,0.00015715,2]
[406540670,1771926642852,-4851.8,0.0001574,2]
[406540671,1771926642861,-4667.0,0.00015742,2]
[406540672,1771926642870,-1000.0,0.00015774,2]
[406540673,1771926642879,-243.49063492,0.00015775,2]
[406540674,1771926642889,-2247.75609779,0.00015807,2]
[406540675,1771926642898,-3000.0,0.00015812,2]
[406540676,1771926642907,-171.4,0.00015813,2]
[406540677,1771926642916,-355.31,0.00015889,2]
[406540678,1771926642925,-304.17499608,0.00015891,2]
[406540679,1771926642934,-150.0,0.000159,2]
[406540680,1771926642943,-150.0,0.000159,2]
[406540681,1771926642952,-150.0,0.000159,2]
[406540682,1771926642961,-150.0,0.000159,2]
[406540683,1771926642971,-4266.19290212,0.00015964,2]
[406540684,1771926642979,-358.06,0.00015966,2]
[406540685,1771926642989,-419.22118993,0.00016,2]
[406540686,1771926642998,-150.0,0.00016034,2]
[406540687,1771926643007,-691.0,0.00016071,2]
[406540688,1771926643017,-5000.00877492,0.000162,5]
[406540689,1771926643026,-1152.0,0.00016213,2]
[406540690,1771926643035,-5117.77252064,0.00016258,2]
[406540691,1771926643045,-5840.56173823,0.00016258,2]
[406540692,1771926643054,-4594.056206,0.00016271,7]
[406540693,1771926643062,-4043.0,0.00016287,2]
[406540694,1771926643072,-200.0,0.0001634,2]
[406540695,1771926643081,-3500.0,0.0001636,2]
[406540697,1771926643091,-159.62910539,0.00016392,2]
[406540699,1771926643100,-900.0,0.00016438,2]
[406540701,1771926643109,-20000.0,0.00016438,2]
[406540703,1771926643118,-361.85708907,0.000166,2]
[406540705,1771926643131,-3496.0,0.00016754,2]
[406540707,1771926643141,-1040.0,0.00016754,2]
[406540709,1771926643149,-618.0,0.00016754,2]
[406540712,1771926643158,-1339.0,0.00016754,2]
[406540714,1771926643167,-1277.0,0.00016754,2]
[406540716,1771926643177,-1210.0,0.00016754,2]
[406540718,1771926643186,-5980.0,0.00016754,2]
[406540720,1771926643198,-2455.0,0.00016754,2]
[406540722,1771926643207,-358.06984512,0.00016764,2]
[406540724,1771926643217,-200.0,0.00016792,2]
[406540726,1771926643226,-243.49063492,0.00016837,2]
[406540727,1771926643236,-5117.77252064,0.000169,2]
[406540728,1771926643247,-5840.56173823,0.000169,2]
[406540729,1771926643257,-500.0,0.00016904,3]
[406540730,1771926643266,-620.70979822,0.00016908,2]
[406540732,1771926643276,-290.58889376,0.00016918,2]
[406540733,1771926643285,-4266.19290212,0.00016932,2]
[406540734,1771926643294,-500.0,0.00016999,2]
[406540735,1771926643303,-500.0,0.00016999,2]
[406540736,1771926643313,-390.45,0.00016999,2]
[406540737,1771926643322,-632.93,0.00016999,2]
[406540738,1771926643333,-632.93,0.00016999,2]
[406540739,1771926643343,-632.93,0.00016999,2]
[406540740,1771926643352,-632.93,0.00016999,2]
[406540741,1771926643361,-632.93,0.00016999,2]
[406540742,1771926643370,-633.0966601,0.00016999,2]
[406540743,1771926643381,-1057.48,0.00016999,2]
[406540744,1771926643390,-1057.48,0.00016999,2]
[406540745,1771926643400,-1057.48,0.00016999,2]
[406540746,1771926643411,-1057.48,0.00016999,2]
[406540747,1771926643421,-1057.48,0.00016999,2]
[406540748,1771926643430,-1057.71667983,0.00016999,2]
[406540749,1771926643439,-300.0,0.00017,2]
[406540750,1771926643449,-405976.30869257,0.00017,2]
[406540751,1771926643458,-173.87087054,0.00017,7]
[406540752,1771926643469,-1194.0,0.00017143,2]
[406540753,1771926643478,-484.87,0.00017199,2]
[406540754,1771926643488,-1194.0,0.0001723,2]
[406540755,1771926643497,-1194.0,0.00017231,2]
[406540756,1771926643506,-3033.8338672,0.00017304,2]
[406540757,1771926643515,-1194.0,0.00017337,2]
[406540758,1771926643524,-1000.0,0.00017352,2]
[406540759,1771926643533,-2039.3747218,0.000175,4]
[406540760,1771926643544,-1194.0,0.00017506,2]
[406540761,1771926643553,-1194.0,0.00017569,2]
[406540762,1771926643562,-1194.0,0.0001763,2]
[406540763,1771926643571,-3120.90212858,0.0001764,2]
[406540764,1771926643580,-1194.0,0.00017663,2]
[406540765,1771926643589,-1194.0,0.00017676,2]
[406540766,1771926643599,-1194.0,0.0001768,2]
[406540767,1771926643608,-1194.0,0.0001777,2]
[406540769,1771926643617,-1194.0,0.0001777,2]
[406540771,1771926643626,-1194.0,0.00017789,2]
[406540773,1771926643636,-1194.0,0.00017807,2]
[406540775,1771926643645,-512.53258443,0.00017808,2]
[406540777,1771926643654,-512.53258443,0.00017808,2]
[406540778,1771926643664,-512.53258443,0.00017808,2]
[406540780,1771926643673,-512.53258443,0.00017808,2]
[406540783,1771926643682,-512.53258443,0.00017808,2]
[406540785,1771926643691,-512.53258443,0.00017808,2]
[406540786,1771926643700,-512.53258443,0.00017808,2]
[406540788,1771926643711,-512.53258443,0.00017808,2]
[406540791,1771926643722,-512.53258443,0.00017808,2]
[406540793,1771926643731,-512.53258443,0.00017808,2]
[406540795,1771926643740,-512.53258443,0.00017808,2]
[406540796,1771926643750,-512.53258443,0.00017808,2]
[406540797,1771926643759,-512.53258443,0.00017808,2]
[406540798,1771926643769,-512.53258443,0.00017808,2]
[406540799,1771926643779,-512.53258443,0.00017808,2]
[406540800,1771926643788,-800.0,0.00017808,2]
[406540801,1771926643798,-1613.0,0.00017814,2]
[406540802,1771926643807,-355.31,0.00017844,2]
[406540803,1771926643816,-200.0,0.00017856,2]
[406540804,1771926643824,-25000.0,0.00017891,3]
[406540805,1771926643834,-967.86848163,0.00017899,2]
[406540806,1771926643843,-25000.0,0.000179,3]
[406540807,1771926643852,-173.87087054,0.000179,3]
[406540808,1771926643861,-243.49063492,0.000179,2]
[406540809,1771926643870,-25000.0,0.000179,3]
[406540810,1771926643879,-8615.08790954,0.000179,3]
[406540811,1771926643888,-357.83626528,0.000179,2]
[406540812,1771926643897,-4266.19290212,0.000179,2]
[406540813,1771926643906,-1194.0,0.00017969,2]